Cogmind - Beta 15 @@@ ROGUE MODE // 2025.05.14 @ 02:06:46 Player: DuckBoy Result: Destroyed by G-67 Veteran with Field Laser Performance ------------- Evolutions (7) 3500 Regions Visited (17) 3400 Robots Destroyed (260) 1300 Value Destroyed (10648) 10648 Prototype IDs (37) 740 Alien Tech Used (2) 400 Bonus (5630) 5630 TOTAL SCORE: 25618 Bonus ------- High Alert Combat Kills 1466 Follower Combat Kills 3089 Registered with UFD 300 Met Zhirov 300 Met Warlord at Base 500 MAIN.C Attacked Warlord 500 Warlord Defense Kills 360 Friendly Fire -885 Cogmind --------- Core Integrity 0/1300 Matter 218/300 Energy 272/325 System Corruption 11% Temperature Cool (0) Movement Rolling (110) Ox1 Location -3/Research Parts ------- > --- POWER (2) -------- Antimatter Reactor > --- PROPULSION (4) --- High-density Centrium Wheel > --- UTILITY (11) ----- Advanced Heat Sink Advanced Signal Interpreter Advanced Hacking Suite > --- WEAPON (4) ------- Compact HERF Cannon Compact HERF Cannon > --- INVENTORY (5) ---- Advanced Terrain Scanner Quantum Rifle Overtuned Railgun Peak State ------------ > --- POWER ------------ Graviton Reactor Graviton Reactor > --- PROPULSION ------- Overtuned Huge Scrapsphere Overtuned Huge Scrapsphere > --- UTILITY ---------- Scrap Suit High-capacity Storage Unit Enhanced Optical Array Improved Target Analyzer Damper Plating Advanced Hacking Suite Improved System Shield > --- WEAPON ----------- Compact HERF Cannon Overtuned Coil Gun Overtuned Coil Gun Enhanced Force Lance > --- INVENTORY -------- Overtuned Huge Scrapsphere Advanced Cooling System Huge Storage Unit Advanced Sensor Array Advanced Signal Interpreter Advanced Terrain Scanner Advanced Recoil Stabilizer Improved Weapon Cycler Enhanced Scrap Shield Dimensional Node Initializer Transdimensional Reconstructor Overtuned Beamcaster Overtuned Coil Gun Mini Smartbomb Launcher Fusion Bomb Launcher [Rating: 135] Favorites ----------- Power Ion Engine Engine Ion Engine Power Core Micro Fission Core Reactor Reinforced Antimatter Reactor Propulsion Overtuned Huge Scrapsphere Treads Light Treads Wheel Overtuned Huge Scrapsphere Utility High-capacity Storage Unit Device Scrap Suit Storage High-capacity Storage Unit Processor Enhanced Optical Array Hackware Advanced Hacking Suite Protection Makeshift Light Armor Plating Weapon Overtuned Coil Gun Energy Gun Makeshift Laser Energy Cannon Powered Cannon Ballistic Gun Overtuned Coil Gun Launcher Grenade Launcher Special Weapon Remote Datajack Slashing Weapon Makeshift Sword Piercing Weapon Enhanced Force Lance Build | -11 -10 -10 -7 -7 -5 -5 -5 -5 -4 -4 -4 -4 -4 -4 -4 -3 -3 ------- Run | Yrd Mat Sub Rec Scr Fac Upp Upp War Pro Fac Was Fac Upp Upp Zhi Pro Res Slots Evolved 14 | . . . . . 10 . . . . 2 . . . . . . 2 Power 1 | . . . . . 1 . . . . . . . . . . . . Propulsion 2 | . . . . . 2 . . . . . . . . . . . . Utility 9 | . . . . . 6 . . . . 1 . . . . . . 2 Weapon 2 | . . . . . 1 . . . . 1 . . . . . . . Parts Attached 151 | 9 12 6 5 6 34 3 . 5 7 9 3 7 . 3 2 3 37 Power 25 | 2 . . 1 1 7 1 . 1 . 1 1 . . . . 1 9 Engine 6 | 2 . . 1 1 2 . . . . . . . . . . . . Core 7 | . . . . . 5 1 . . . 1 . . . . . . . Reactor 12 | . . . . . . . . 1 . . 1 . . . . 1 9 Propulsion 15 | 4 . 2 1 2 2 . . . . . . . . . . . 4 Treads 8 | 2 . 2 1 1 . . . . . . . . . . . . 2 Leg . | . . . . . . . . . . . . . . . . . . Wheel 7 | 2 . . . 1 2 . . . . . . . . . . . 2 Hover . | . . . . . . . . . . . . . . . . . . Flight . | . . . . . . . . . . . . . . . . . . Utility 68 | 1 6 2 2 . 17 1 . 2 7 6 1 3 . 3 2 1 14 Device 31 | . 1 . 1 . 8 . . 2 3 2 1 1 . 3 1 1 7 Storage 9 | 1 3 . 1 . 2 . . . 1 . . 1 . . . . . Processor 8 | . 1 . . . 1 . . . 2 1 . 1 . . . . 2 Hackware 9 | . . . . . 3 . . . . 3 . . . . . . 3 Protection 11 | . 1 2 . . 3 1 . . 1 . . . . . 1 . 2 Artifact . | . . . . . . . . . . . . . . . . . . Weapon 43 | 2 6 2 1 3 8 1 . 2 . 2 1 4 . . . 1 10 Energy Gun 9 | 1 1 . . 1 1 . . 2 . . . . . . . . 3 Energy Cannon 8 | . 2 1 . 1 2 1 . . . . . . . . . . 1 Ballistic Gun 15 | 1 . . 1 . 4 . . . . 2 1 2 . . . 1 3 Ballistic Cannon . | . . . . . . . . . . . . . . . . . . Launcher 7 | . 3 . . . 1 . . . . . . 1 . . . . 2 Special Weapon 2 | . . . . 1 . . . . . . . 1 . . . . . Impact Weapon . | . . . . . . . . . . . . . . . . . . Slashing Weapon 1 | . . 1 . . . . . . . . . . . . . . . Piercing Weapon 1 | . . . . . . . . . . . . . . . . . 1 Special Melee Weapon . | . . . . . . . . . . . . . . . . . . Unidentified Prototypes 9 | . . . . . 1 1 . 1 . . . 1 . . 3 . 2 Corrupted Parts 2 | . . . . . . . . . . . . . . . . . 2 System Corruption 4 | . . . . . . . . . . . . . . . . . 4 Parts Lost 60 | . . 5 . . 14 . . 5 1 1 . 2 . . . . 32 Power 12 | . . . . . 5 . . . . . . . . . . . 7 Propulsion 6 | . . 1 . . . . . . . . . . . . . . 5 Utility 20 | . . 2 . . 5 . . 2 1 . . 1 . . . . 9 Weapon 22 | . . 2 . . 4 . . 3 . 1 . 1 . . . . 11 Highest Loss Streak 20 | . . 3 . . 4 . . 5 1 1 . 2 . . . . 20 To Critical Strikes 3 | . . . . . 2 . . . . . . 1 . . . . . Average Backups 14 | 3 12 13 6 19 15 15 14 15 11 14 14 14 15 15 15 15 13 Power . | . 1 . . . . . . . . . . . . . . . . Propulsion 1 | 2 3 1 . . 1 1 1 1 1 1 1 1 1 1 1 1 . Utility 7 | . 1 2 2 12 8 8 9 9 8 8 9 8 10 9 9 9 6 Weapon 4 | . 6 7 3 5 4 5 4 3 1 4 3 3 3 3 3 3 3 Tool/Special . | . . . . . . . . . . . . . . . . . . Unused Backups 75 | . 7 2 15 17 15 2 . . . 3 5 2 . . 1 . 6 Power 3 | . . . . 1 . . . . . 1 . . . . . . 1 Propulsion 11 | . 3 1 1 3 1 1 . . . . . . . . . . 1 Utility 23 | . 1 . . 8 9 1 . . . 1 2 . . . . . 1 Weapon 35 | . 3 1 13 5 4 . . . . 1 3 2 . . 1 . 2 Tool/Special 3 | . . . 1 . 1 . . . . . . . . . . . 1 Average Slot Usage (%) 80 | . 97 93 81 73 77 76 75 74 79 79 84 83 84 84 83 84 68 Engine 7 | . 14 14 10 12 3 . . . . . . . . . . . . Core 1 | . . . . . 7 11 11 10 5 5 1 . . . . . . Reactor 2 | . . . . . . . . . 5 4 8 10 10 10 10 10 7 Treads 13 | . 28 27 28 19 . . . . . . . . . . . . . Wheel 5 | . . . . 3 10 11 11 11 11 10 10 10 10 10 10 10 7 Device 5 | . . 2 7 . 11 11 11 11 15 11 10 8 10 10 9 10 8 Storage 8 | . 14 10 6 13 4 5 5 5 5 5 5 5 5 5 5 5 3 Processor 2 | . 9 . . . 2 . . . 4 5 10 8 10 10 10 10 7 Hackware 5 | . . . . . 11 17 17 16 5 10 15 15 15 15 15 15 12 Protection 2 | . 1 8 . . 4 . . . 4 5 . 3 . . . . 1 Energy Gun 3 | . 4 . . 7 2 . . . 10 9 . . . . . . . Energy Cannon 3 | . 10 4 . 3 5 . . . 4 6 . . . . . . . Ballistic Gun 5 | . 4 . 1 2 4 16 16 16 . 2 20 20 15 15 15 20 12 Launcher 5 | . 8 19 12 . . . . . . . . . 5 5 5 . . Special Weapon 2 | . . . . 7 . . . . . . . . . . . . . Slashing Weapon 2 | . . 3 14 1 1 . . . . . . . . . . . . Peak Build Rating 135 | 6 11 14 20 41 98 101 101 103 102 114 117 114 113 115 117 116 135 Average Rating 54 | 4 8 11 14 28 88 99 99 98 96 106 114 110 113 114 114 114 112 On Entrance 75 | . 6 11 13 20 41 98 99 100 73 97 114 113 113 113 114 115 114 Naked Turns 24 | . . . . . . . . . . . . . . . . . 24 Heaviest Build 144 | 13 56 55 50 54 96 90 90 100 107 116 108 120 105 105 104 108 144 Greatest Support 56 | 40 40 40 40 43 48 40 40 40 40 40 40 40 40 40 40 40 56 Greatest Overweight (x) 17 | 1 1 1 1 17 3 2 2 2 2 2 2 2 2 2 2 2 3 Average Overweight (x) 1 | . . . . 2 1 2 2 1 2 2 2 2 2 2 2 2 1 Largest Inventory Capacity 25 | 8 20 20 25 25 25 20 20 20 20 20 20 25 20 20 20 20 20 Average Capacity 19 | 7 14 16 13 25 20 20 20 20 20 20 20 20 20 20 20 20 17 Most Carried 25 | 6 16 20 20 25 23 20 20 20 17 20 20 20 20 20 20 20 20 Average Carried 17 | 3 12 15 8 24 18 19 19 19 14 18 19 19 20 19 19 20 16 Final Capacity 25 | 8 20 20 25 25 20 20 20 20 20 20 20 20 20 20 20 20 5 Final Carried 25 | 6 16 17 20 25 20 20 20 18 15 20 20 20 20 20 20 20 3 Class Distribution -------------------- 39% | Mutant 25% | Hacker-Scrapper 13% | Derelict-Mutant 7% | Scavenger-Scrapper 6% | Cobbler-Mutant Dominant Class ---------------- Mutant | -10/Materials Mutant | -10/Subcaves Mutant | -7/Recycling Derelict-Mutant | -7/Scraptown Hacker-Scrapper | -5/Factory Hacker-Scrapper | -5/Upper Caves Hacker-Scrapper | -5/Upper Caves Hacker-Scrapper | -5/Warlord Scavenger-Scrapper | -4/Proximity Caves Hacker-Scrapper | -4/Factory Scavenger-Scrapper | -4/Waste Hacker-Scrapper | -4/Factory Hacker-Scrapper | -4/Upper Caves Hacker-Scrapper | -4/Upper Caves Hacker-Scrapper | -4/Zhirov Hacker-Scrapper | -3/Proximity Caves Scavenger-Scrapper | -3/Research Resources | -11 -10 -10 -7 -7 -5 -5 -5 -5 -4 -4 -4 -4 -4 -4 -4 -3 -3 ----------- Run | Yrd Mat Sub Rec Scr Fac Upp Upp War Pro Fac Was Fac Upp Upp Zhi Pro Res Matter Collected 9097 | 241 451 544 1362 130 994 428 164 71 196 145 207 1702 292 298 . 293 1579 Remotely . | . . . . . . . . . . . . . . . . . . Salvage Created 13747 | . 452 514 1341 . 2919 678 257 299 152 460 917 2229 373 255 . 296 2605 Parts 602 | . 24 34 49 . 122 22 4 10 3 19 24 95 17 12 . 18 149 Haulers Intercepted 9 | . 2 . . . 3 . . . . . . 3 . . . . 1 Recyclers Shooed 11 | . . . 3 . 5 . . . . . . 2 . . . . 1 Parts Field Recycled . | . . . . . . . . . . . . . . . . . . Retrieved Matter . | . . . . . . . . . . . . . . . . . . Parts Self-Destructed 91 | . . 20 . . . 27 4 . . . . . 12 13 . 15 . Prevented 3 | . . . . . . . . . 3 . . . . . . . . Kills | -11 -10 -10 -7 -7 -5 -5 -5 -5 -4 -4 -4 -4 -4 -4 -4 -3 -3 ------- Run | Yrd Mat Sub Rec Scr Fac Upp Upp War Pro Fac Was Fac Upp Upp Zhi Pro Res Combat Hostiles Destroyed 173 | . 14 24 . . 34 7 3 3 2 6 3 19 13 7 . 4 34 Guns 78 | . . . . . 16 7 3 3 1 3 3 15 2 3 . 3 19 Cannons 21 | . 2 1 . . 14 . . . . 1 . . . . . 1 2 AOE 67 | . 12 22 . . 3 . . . . . . 4 11 4 . . 11 Classes Destroyed 22 | . 5 2 1 . 8 1 . 2 . . 1 . 1 . . . 1 Worker 16 | . . . . . 4 . . . . . . 4 . . . . 8 Builder 14 | . . . 4 . 1 . . . . . . 4 . . . . 5 Tunneler 5 | . . . . . 3 . . . . . . 1 . . . . 1 Hauler 9 | . 2 . . . 3 . . . . . . 3 . . . . 1 Recycler 21 | . 1 . 13 . 4 . . . . . . 3 . . . . . Mechanic 3 | . . . . . 2 . . . . . . . . . . . 1 Operator 3 | . . . . . 1 . . . . 1 . . . . . . 1 Turret 2 | . . 2 . . . . . . . . . . . . . . . Watcher 8 | . 2 . . . 3 . . . . 1 . . . . . . 2 Swarmer 35 | . 5 4 . . 5 . . . . 2 . . 7 4 . . 8 Saboteur 1 | . . . . . . . . . . . . . . . . . 1 Grunt 52 | . 9 3 . . 10 7 . 1 . 2 . 8 5 2 . . 5 Brawler 2 | . . . . . . . 2 . . . . . . . . . . Duelist 3 | . . . . . . . . 1 . . . . . . . . 2 Sentry 7 | . . . . . 2 . 1 . . 1 . . 1 . . . 2 Demolisher 1 | . . . . . . . . 1 . . . . . . . . . Hunter 34 | . . . . . 9 . . . 2 1 . 11 . 1 . 4 6 Programmer 17 | . . . . . 7 . . . . . . . . . . . 10 Compactor 3 | . . . . . . . . . . . 3 . . . . . . Subdweller 17 | . . 17 . . . . . . . . . . . . . . . Scrapoid 4 | . . . . . 1 . . . . . . 1 . . . . 2 Packrat 1 | . . . . . . . . . . . . . . 1 . . . Samaritan 1 | . . . . . . . . . . . . . 1 . . . . Thug 1 | . . . . . . . . 1 . . . . . . . . . Savage 2 | . . . . . . 1 . 1 . . . . . . . . . Best Kill Streak 12 | . 4 6 3 . 8 4 3 2 2 2 3 8 5 4 . 2 12 Combat Bots Only 8 | . 4 6 . . 8 4 3 2 2 2 3 3 5 4 . 2 8 Max Kills in Single Turn 5 | . 2 2 1 . 2 3 1 1 1 1 1 2 4 2 . 1 5 Gunslinging 1 | . . . . . 1 . . . . . . . . . . . 1 Exploded 4 | . 2 2 . . 1 . . . . . . 1 4 2 . . 3 Melee . | . . . . . . . . . . . . . . . . . . Uniques/NPCs Destroyed . | . . . . . . . . . . . . . . . . . . Combat | -11 -10 -10 -7 -7 -5 -5 -5 -5 -4 -4 -4 -4 -4 -4 -4 -3 -3 -------- Run | Yrd Mat Sub Rec Scr Fac Upp Upp War Pro Fac Was Fac Upp Upp Zhi Pro Res Hostile Shots Fired 1262 | . 31 91 . . 279 7 2 45 52 47 . 148 11 20 . 8 521 Missed 419 | . 9 36 . . 79 3 . 11 20 14 . 59 2 5 . 3 178 Hits 843 | . 22 55 . . 200 4 2 34 32 33 . 89 9 15 . 5 343 Projectile 843 | . 22 55 . . 200 4 2 34 32 33 . 89 9 15 . 5 343 AOE 4 | . . . . . . . . 4 . . . . . . . . . Critical Strikes 51 | . 1 1 . . 15 . . 2 . 1 . 5 1 3 . 1 21 Part Disruptions 2 | . . . . . . . . 1 . . . . . . . . 1 Damage Taken 16771 | . 345 768 . . 4123 76 45 1008 570 613 . 1637 168 312 . 138 6968 Core 2411 | . 88 111 . . 449 . . 115 75 77 . 145 40 . . 9 1302 Absorbed by Shields . | . . . . . . . . . . . . . . . . . . Ignored by Resistances 174 | . . . . . . . . . . . . . . . . . 174 Regen/Repaired (Parts) 1205 | . . . . . 353 40 . 30 . 202 . 323 . 10 . 20 227 Core Remaining (%) 58 | 100 . . . 20 . . . . 36 . . . . . . 76 . Volleys Fired 589 | . 32 56 . 8 144 26 16 12 11 26 9 100 12 17 . 12 108 Largest 4 | . 2 2 . 1 3 3 3 3 3 4 4 4 3 3 . 4 4 Hottest 394 | . 136 110 . 5 346 96 96 120 289 394 136 190 96 96 . 190 196 Shots Fired 1419 | . 57 84 . 8 321 66 42 34 18 65 37 319 20 38 . 49 261 Gun 1053 | . 12 . . . 202 60 41 34 9 38 37 307 12 33 . 46 222 Cannon 217 | . 16 21 . . 112 6 1 . 9 27 . 1 . . . 3 21 Launcher 137 | . 29 63 . . 5 . . . . . . 9 8 5 . . 18 Special 12 | . . . . 8 2 . . . . . . 2 . . . . . Kinetic 985 | . 6 . . . 168 60 41 33 . 21 37 307 12 33 . 46 221 Thermal 215 | . 20 21 . . 136 . . 1 9 27 . . . . . . 1 Explosive 127 | . 29 63 . . . . . . . . . 9 8 5 . . 13 Electromagnetic 80 | . 2 . . . 15 6 1 . 9 17 . 1 . . . 3 26 Robot Hit Streak 14 | . 6 11 . 2 14 6 7 3 6 3 7 8 4 4 . 6 14 Robot Miss Streak 10 | . 2 1 . 2 3 3 6 6 7 4 1 6 1 3 . 5 10 Penetration Max 2 | . . . . . 1 1 . 2 . . . 1 1 1 . . 1 Secondary Targets 19 | . . . . . 4 1 2 1 . 1 . 2 . . . . 8 Max Gunslinging Chain 1 | . . . . . 1 1 1 1 . 1 . 1 . . . . 1 Shots Hit Robots 705 | . 24 25 34 4 185 30 20 10 12 25 26 132 7 16 . 25 130 Core Hits 470 | . 22 42 16 . 79 16 7 16 4 10 6 80 27 24 . 8 113 Critical Kills 27 | . . 1 . . 3 . . 1 . . 2 9 1 1 . . 9 Critical Parts Destroyed 27 | . . . . . 10 . . . . . . 7 . . . 2 8 Critical Strikes 69 | . . 1 . . 16 1 . 2 . . 7 17 1 1 . 2 21 Burn 3 | . . . . . 2 . . . . . . . . . . . 1 Meltdown 3 | . . 1 . . 2 . . . . . . . . . . . . Destroy 59 | . . . . . 11 . . 2 . . 7 17 1 1 . 2 18 Corrupt 2 | . . . . . . 1 . . . . . . . . . . 1 Sever 1 | . . . . . 1 . . . . . . . . . . . . Impale 1 | . . . . . . . . . . . . . . . . . 1 Melee Attacks 94 | . . 3 39 . 36 . . . . . . . . . . . 16 Impact . | . . . . . . . . . . . . . . . . . . Slashing 78 | . . 3 39 . 36 . . . . . . . . . . . . Piercing 16 | . . . . . . . . . . . . . . . . . 16 Sneak Attacks 35 | . . . 22 . 7 . . . . . . . . . . . 6 Combat Hostiles . | . . . . . . . . . . . . . . . . . . Follow-up Attacks . | . . . . . . . . . . . . . . . . . . Damage Inflicted 34078 | . 1291 2782 2166 . 7055 1081 512 966 417 880 723 5354 1633 1253 . 425 7540 Guns 15837 | . 53 . . . 3343 930 512 966 154 306 723 4118 244 438 . 383 3667 Cannons 4185 | . 142 148 . . 2384 151 . . 263 574 . . . . . 42 481 Explosions 10159 | . 1096 2634 . . 363 . . . . . . 1236 1389 815 . . 2626 Melee 3897 | . . . 2166 . 965 . . . . . . . . . . . 766 Ramming . | . . . . . . . . . . . . . . . . . . Kinetic 14884 | . 19 . . . 2724 930 512 966 . 185 723 4118 244 438 . 383 3642 Thermal 4065 | . 176 148 . . 2869 . . . 154 274 . 208 . . . . 236 Explosive 8788 | . 1096 2634 . . 108 . . . . . . 1028 1389 815 . . 1718 Electromagnetic 2444 | . . . . . 389 151 . . 263 421 . . . . . 42 1178 Impact . | . . . . . . . . . . . . . . . . . . Slashing 3131 | . . . 2166 . 965 . . . . . . . . . . . . Piercing 766 | . . . . . . . . . . . . . . . . . 766 Highest Corruption 11 | . . . . . 5 . . 7 7 1 1 1 1 1 1 1 11 Average Corruption 1 | . . . . . 2 . . 7 3 1 1 1 1 1 1 1 3 Corruption Purged 13 | . . . . . 9 . . . 4 . . . . . . . . Corruption Blocked 9 | . . . . . . . . . . . 9 . . . . . . Effects 98 | . . . . . 18 . . 1 16 1 2 11 5 9 2 6 27 Message Errors 24 | . . . . . 4 . . . 6 1 1 2 . . . 1 9 Matter Fused 25 | . . . . . 3 . . . 6 . . 4 2 2 1 2 5 Heat Flow Errors 12 | . . . . . 4 . . . . . . . 1 2 . 1 4 Energy Discharges 12 | . . . . . 1 . . . . . . . 1 4 . 1 5 Parts Rejected 2 | . . . . . 2 . . . . . . . . . . . . Parts Fused 4 | . . . . . 1 . . . 2 . . . . . . . 1 Data Loss (minor) 10 | . . . . . 2 . . 1 1 . . 2 1 . 1 . 2 Data Loss (major) 4 | . . . . . . . . . 1 . . 2 . . . . 1 Misfires 2 | . . . . . . . . . . . 1 . . . . 1 . Weapon Failures 3 | . . . . . 1 . . . . . . 1 . 1 . . . Overload Shots 15 | . . . . . 14 . . . . 1 . . . . . . . Effects 2 | . . . . . 2 . . . . . . . . . . . . Heat Surge 1 | . . . . . 1 . . . . . . . . . . . . Short Circuit 1 | . . . . . 1 . . . . . . . . . . . . Overflow Damage 1160 | . 52 91 468 . 206 43 . . . 10 . 21 57 54 . . 158 Projectiles 206 | . . . . . 153 43 . . . 10 . . . . . . . Explosions 342 | . 52 91 . . 2 . . . . . . 21 57 54 . . 65 Melee 612 | . . . 468 . 51 . . . . . . . . . . . 93 Knockbacks . | . . . . . . . . . . . . . . . . . . Impact . | . . . . . . . . . . . . . . . . . . Kinetic . | . . . . . . . . . . . . . . . . . . Secondary . | . . . . . . . . . . . . . . . . . . Self-Inflicted Damage 453 | . 111 90 . . 47 . . . . . . 103 . . . . 102 Shots 22 | . 4 3 . . 2 . . . . . . 2 . . . . 11 Rammed 1 | 1 . . . . . . . . . . . . . . . . . Targets Rammed 1 | 1 . . . . . . . . . . . . . . . . . Kicked . | . . . . . . . . . . . . . . . . . . Crushed . | . . . . . . . . . . . . . . . . . . Highest Temperature 372 | . 225 15 . . 372 258 336 346 301 315 355 358 188 264 . 266 290 Average Temperature 99 | . 58 10 . . 95 91 135 131 122 120 207 101 83 74 . 102 88 Received Heat Transfer 2360 | . 123 228 . . 570 39 9 92 33 114 . 94 21 36 . . 1001 Effects 3 | . . . . . . . . . . . 2 1 . . . . . Shutdowns 1 | . . . . . . . . . . . . 1 . . . . . Energy Bleed 1 | . . . . . . . . . . . 1 . . . . . . Short Circuit 1 | . . . . . . . . . . . 1 . . . . . . Siege Activations . | . . . . . . . . . . . . . . . . . . Martial Activations . | . . . . . . . . . . . . . . . . . . Shielding Activations . | . . . . . . . . . . . . . . . . . . Robots Disrupted 1 | . . . . . . . . . . . . . . . . . 1 Combat Hostiles 1 | . . . . . . . . . . . . . . . . . 1 Robots Corrupted 5 | . . . . . . 1 . . 1 1 . . . . . . 2 Combat Hostiles 5 | . . . . . . 1 . . 1 1 . . . . . . 2 Parts Fried 13 | . . . . . . . . . 2 4 . . . . . . 7 Impact Corruptions . | . . . . . . . . . . . . . . . . . . Robots Melted 4 | . . 1 . . 2 . . . . 1 . . . . . . . Combat Hostiles 3 | . . 1 . . 1 . . . . 1 . . . . . . . Parts Melted 26 | . . 2 . . 14 . . . 1 4 1 1 . . . 1 2 Heat Transferred 4992 | . 334 222 . . 3353 . . . 248 335 . 150 . . . . 350 Parts Sabotaged . | . . . . . . . . . . . . . . . . . . Parts Stolen . | . . . . . . . . . . . . . . . . . . Parts Stripped . | . . . . . . . . . . . . . . . . . . Power Chain Reactions 4 | . . . . . 2 . . . . . . . . . . . 2 Alert | -11 -10 -10 -7 -7 -5 -5 -5 -5 -4 -4 -4 -4 -4 -4 -4 -3 -3 ------- Run | Yrd Mat Sub Rec Scr Fac Upp Upp War Pro Fac Was Fac Upp Upp Zhi Pro Res Maximum Alert Level 5 | . 1 . . . 4 . . . . 2 . 5 . . . . 4 Low Security (%) 60 | 100 56 . 100 . 16 . . . . 80 100 34 . . . . 51 Level 1 11 | . 43 . . . 15 . . . . 18 . 3 . . . . 7 Level 2 16 | . . . . . 46 . . . . 1 . 26 . . . . 15 Level 3 4 | . . . . . 9 . . . . . . 11 . . . . 6 Level 4 6 | . . . . . 13 . . . . . . 9 . . . . 19 Level 5 1 | . . . . . . . . . . . . 14 . . . . . High Security . | . . . . . . . . . . . . . . . . . . Max Security . | . . . . . . . . . . . . . . . . . . Peak Influence 2027 | . 298 . 69 . 1579 . . . . 426 147 2027 . . . . 1405 Initial 147 | . . . 69 . . . . . . . 147 58 . . . . . Average 295 | . 159 . 4 . 548 . . . . 74 121 690 . . . . 456 Influence Increases 11315 | . 620 485 176 . 2829 195 60 75 140 950 36 2569 486 308 . 120 2266 Destroy 0b10 Robot/C 4340 | . 280 180 . . 840 140 60 60 40 380 . 840 280 200 . 80 960 Destroy 0b10 Robot/NC 540 | . 25 . 105 . 150 5 . . . 30 . 125 . . . . 100 Destroy Leader 874 | . 78 20 . . 178 20 . . 10 98 . 184 30 30 . 20 206 Allied During Kill 1432 | . . . . . 224 . . . . 146 . 593 176 78 . 20 195 Successful Hack 202 | . 37 . 38 . 57 . . . . 51 . 4 . . . . 15 Select Force Hacks 90 | . 60 . 30 . . . . . . . . . . . . . . Disable Machine 810 | . 15 . . . 390 . . . . 45 . 240 . . . . 120 Destroy Structure 1842 | . 125 . 3 . 660 . . . . 110 36 568 . . . . 340 Partial Spotted 45 | . . . . . 30 . . . . . . 15 . . . . . Lose Combat Pursuer 1140 | . . 285 . . 300 30 . 15 90 90 . . . . . . 330 Influence Decreases 9998 | . 413 547 321 . 1251 989 420 492 147 530 373 633 1134 688 991 120 949 Entered New Map 3641 | . . 100 76 . . 585 150 424 7 . 273 25 748 262 991 . . Time Decay 4793 | . 413 407 245 . 601 404 270 44 130 340 80 508 386 386 . 120 459 Lost Part 554 | . . 40 . . 140 . . 24 10 10 . 20 . . . . 310 Lost Ally 710 | . . . . . 210 . . . . 180 20 80 . 40 . . 180 Purge Threat 300 | . . . . . 300 . . . . . . . . . . . . Squads Dispatched 65 | . 8 . . . 21 . . . . 8 . 17 . . . . 11 Investigation 30 | . 7 . . . 11 . . . . 5 . 5 . . . . 2 Extermination 14 | . . . . . 5 . . . . 2 . 3 . . . . 4 Reinforcement 15 | . 1 . . . 1 . . . . 1 . 8 . . . . 4 Assault 3 | . . . . . 1 . . . . . . 1 . . . . 1 Garrison 3 | . . . . . 3 . . . . . . . . . . . . Intercept . | . . . . . . . . . . . . . . . . . . Searches Triggered . | . . . . . . . . . . . . . . . . . . Construction Impeded 8 | . . . . . 1 . . . . . . 5 . . . . 2 Haulers Reinforced 4 | . . . . . . . . . . . . 3 . . . . 1 Active Scanning Responses . | . . . . . . . . . . . . . . . . . . Cargo Convoy Interrupts 1 | . . . . . . . . . . . . . . . . . 1 Stealth | -11 -10 -10 -7 -7 -5 -5 -5 -5 -4 -4 -4 -4 -4 -4 -4 -3 -3 --------- Run | Yrd Mat Sub Rec Scr Fac Upp Upp War Pro Fac Was Fac Upp Upp Zhi Pro Res Distress Signals 20 | . . . . . . . . . . 3 . 11 . . . . 6 Communications Jammed . | . . . . . . . . . . . . . . . . . . Distress Signals . | . . . . . . . . . . . . . . . . . . Times Spotted 383 | . 19 33 . . 71 6 3 60 8 26 5 41 9 8 . 4 90 Peak Tracking Total 34 | . 5 4 . . 9 4 3 34 4 5 4 5 6 4 . 2 17 Tactical Retreats 29 | . . 3 . . 9 1 . 1 2 4 . . . . . . 9 Traps | -11 -10 -10 -7 -7 -5 -5 -5 -5 -4 -4 -4 -4 -4 -4 -4 -3 -3 ------- Run | Yrd Mat Sub Rec Scr Fac Upp Upp War Pro Fac Was Fac Upp Upp Zhi Pro Res Traps Triggered 17 | . 1 . . . 8 . . . . 3 . 5 . . . . . Indirectly 3 | . . . . . 3 . . . . . . . . . . . . Trap Hack Attempts . | . . . . . . . . . . . . . . . . . . Triggered . | . . . . . . . . . . . . . . . . . . Disarmed . | . . . . . . . . . . . . . . . . . . Reprogrammed 4 | . 4 . . . . . . . . . . . . . . . . Reused . | . . . . . . . . . . . . . . . . . . Traps Extracted . | . . . . . . . . . . . . . . . . . . Installed 3 | . . . 3 . . . . . . . . . . . . . . Triggered . | . . . . . . . . . . . . . . . . . . Most Traps Carried 1 | . . . 1 . . . . . . . . . . . . . . Machines | -11 -10 -10 -7 -7 -5 -5 -5 -5 -4 -4 -4 -4 -4 -4 -4 -3 -3 ---------- Run | Yrd Mat Sub Rec Scr Fac Upp Upp War Pro Fac Was Fac Upp Upp Zhi Pro Res Machines Disabled 60 | . 1 5 . . 26 . 1 . . 3 . 16 . . . . 8 Max in Single Turn 4 | . 1 2 . . 4 . 1 . . 1 . 4 . . . . 2 Garrison Access 5 | . . . . . 2 . . . . 2 . 1 . . . . . Machines Repaired . | . . . . . . . . . . . . . . . . . . Machines Dismantled . | . . . . . . . . . . . . . . . . . . Machines Sabotaged . | . . . . . . . . . . . . . . . . . . Overloaded Fab Kills . | . . . . . . . . . . . . . . . . . . Hacking | -11 -10 -10 -7 -7 -5 -5 -5 -5 -4 -4 -4 -4 -4 -4 -4 -3 -3 --------- Run | Yrd Mat Sub Rec Scr Fac Upp Upp War Pro Fac Was Fac Upp Upp Zhi Pro Res Machines Accessed 102 | . 9 2 8 8 22 1 1 11 . 14 . 9 1 . 8 . 8 Terminals 30 | . 7 . 4 . 9 . . . . 5 . 1 . . . . 4 Fabricators 5 | . . . . . 3 . . . . 2 . . . . . . . Repair Stations 6 | . . . . . 1 . . . . 2 . 2 . . . . 1 Recycling Units 19 | . 2 . 3 . 5 . . . . 3 . 4 . . . . 2 Scanalyzers 4 | . . . . . 2 . . . . . . 1 . . . . 1 Garrison Access 5 | . . . . . 2 . . . . 2 . 1 . . . . . Total Hacks 349 | . 26 13 24 51 75 1 1 19 . 39 . 25 1 . 43 . 31 Successful 257 | . 13 13 15 51 52 1 1 19 . 21 . 13 1 . 43 . 14 Failed 92 | . 13 . 9 . 23 . . . . 18 . 12 . . . . 17 Catastrophic 11 | . 2 . 3 . 2 . . . . 3 . . . . . . 1 Database Lockouts . | . . . . . . . . . . . . . . . . . . Manual 80 | . 14 1 7 . 19 . . . . 15 . 14 . . . . 10 Terminals 104 | . 21 . 9 . 37 . . . . 12 . 6 . . . . 19 Fabricators 17 | . . . . . 8 . . . . 9 . . . . . . . Repair Stations 17 | . . . . . 7 . . . . 3 . 4 . . . . 3 Recycling Units 44 | . 5 . 10 . 11 . . . . 5 . 11 . . . . 2 Scanalyzers 20 | . . . . . 10 . . . . . . 3 . . . . 7 Garrison Access 13 | . . . . . 2 . . . . 10 . 1 . . . . . Terminal Hacks 167 | . 6 13 7 51 18 1 1 19 . 3 . 1 1 . 43 . 3 Record 116 | . . 12 5 45 . . 1 18 . . . . . . 35 . . Part Schematic 7 | . . . 1 . 2 . . . . . . . . . 4 . . Robot Schematic 2 | . 2 . . . . . . . . . . . . . . . . Robot Analysis 7 | . . . . 6 1 . . . . . . . . . . . . Prototype ID Bank 5 | . . . 1 . . . . . . . . . . . 4 . . Open Door 3 | . . . . . . 1 . 1 . . . . 1 . . . . Level Access Points 1 | . . . . . 1 . . . . . . . . . . . . Branch Access Points 3 | . . . . . 1 . . . . . . 1 . . . . 1 Emergency Access Points 1 | . 1 . . . . . . . . . . . . . . . . Terminal Index 3 | . 1 . . . 1 . . . . 1 . . . . . . . Recycling Unit Index 1 | . . . . . 1 . . . . . . . . . . . . Garrison Index 1 | . . . . . 1 . . . . . . . . . . . . Alert Level 3 | . . . . . 2 . . . . . . . . . . . 1 Unreport Threat 2 | . . . . . 2 . . . . . . . . . . . . Locate Traps 3 | . . . . . 1 . . . . 1 . . . . . . 1 Reprogram Traps 1 | . 1 . . . . . . . . . . . . . . . . Dispatch Records 3 | . . . . . 2 . . . . 1 . . . . . . . Recall Investigation 3 | . 1 . . . 2 . . . . . . . . . . . . Recall Reinforcements 1 | . . . . . 1 . . . . . . . . . . . . Proto ID Catalog 1 | . . 1 . . . . . . . . . . . . . . . Fabricator Hacks 9 | . . . . . 6 . . . . 3 . . . . . . . Load Schematic 5 | . . . . . 3 . . . . 2 . . . . . . . Build 4 | . . . . . 3 . . . . 1 . . . . . . . Repair Station Hacks 10 | . . . . . 6 . . . . 2 . . . . . . 2 Scan Component 5 | . . . . . 3 . . . . 1 . . . . . . 1 Repair 5 | . . . . . 3 . . . . 1 . . . . . . 1 Recycling Unit Hacks 6 | . 1 . 4 . . . . . . 1 . . . . . . . Report Inventory 1 | . . . 1 . . . . . . . . . . . . . . Retrieve Matter 3 | . 1 . 2 . . . . . . . . . . . . . . Retrieve Components 2 | . . . 1 . . . . . . 1 . . . . . . . Scanalyzer 17 | . . . . . 9 . . . . . . 3 . . . . 5 Insert Component 7 | . . . . . 3 . . . . . . 2 . . . . 2 Analyze 10 | . . . . . 6 . . . . . . 1 . . . . 3 Garrison Access Hacks 5 | . . . . . 2 . . . . 2 . 1 . . . . . Seal Access 5 | . . . . . 2 . . . . 2 . 1 . . . . . Unauthorized Hacks 43 | . 6 . 4 . 11 . . . . 10 . 8 . . . . 4 Terminals 11 | . 4 . . . 3 . . . . 2 . . . . . . 2 Track 2 | . 1 . . . . . . . . 1 . . . . . . . Botnet 7 | . 3 . . . 2 . . . . 1 . . . . . . 1 Operators 2 | . . . . . 1 . . . . . . . . . . . 1 Fabricators 2 | . . . . . . . . . . 2 . . . . . . . Report 1 | . . . . . . . . . . 1 . . . . . . . Recompile 1 | . . . . . . . . . . 1 . . . . . . . Repair Stations 2 | . . . . . . . . . . 1 . 1 . . . . . Mechanics 1 | . . . . . . . . . . 1 . . . . . . . Patch 1 | . . . . . . . . . . . . 1 . . . . . Recycling Units 27 | . 2 . 4 . 8 . . . . 4 . 7 . . . . 2 Monitor 2 | . . . . . 1 . . . . . . 1 . . . . . Reject 2 | . . . 1 . . . . . . . . 1 . . . . . Recyclers 3 | . . . 1 . 1 . . . . . . 1 . . . . . Mask 4 | . . . 1 . 1 . . . . 1 . 1 . . . . . Tunnel 3 | . 2 . 1 . . . . . . . . . . . . . . Fedlink 1 | . . . . . 1 . . . . . . . . . . . . Scrapoids 12 | . . . . . 4 . . . . 3 . 3 . . . . 2 Scanalyzers . | . . . . . . . . . . . . . . . . . . Garrison Access 1 | . . . . . . . . . . 1 . . . . . . . Broadcast 1 | . . . . . . . . . . 1 . . . . . . . Data Cores Recovered 2 | . . . . . . . . . . 1 . . . . . . 1 Used 2 | . . . . . . . . . . 1 . . . . . . 1 Hacking Detections 48 | . 8 . 6 . 17 . . . . 9 . 3 . . . . 5 Full Trace Events 13 | . 5 . 2 . 4 . . . . 1 . 1 . . . . . Feedback Events . | . . . . . . . . . . . . . . . . . . Feedback Blocked . | . . . . . . . . . . . . . . . . . . Robot Schematics Acquired 2 | . 2 . . . . . . . . . . . . . . . . Robots Built 2 | . . . . . 2 . . . . . . . . . . . . Authchips . | . . . . . . . . . . . . . . . . . . Time 121 | . . . . . 121 . . . . . . . . . . . . Total Robot Build Rating 2 | . . . . . 2 . . . . . . . . . . . . Part Schematics Acquired 12 | . . . 1 . 5 . . . . . . 1 . . 4 . 1 Parts Built 2 | . . . . . 1 . . . . 1 . . . . . . . Authchips 1 | . . . . . . . . . . 1 . . . . . . . Time 99 | . . . . . 64 . . . . 35 . . . . . . . Total Part Build Rating 14 | . . . . . 8 . . . . 6 . . . . . . . Parts Repaired 5 | . . . . . 3 . . . . 1 . . . . . . 1 Time 324 | . . . . . 234 . . . . 62 . . . . . . 28 Parts Recycled . | . . . . . . . . . . . . . . . . . . Recycled Matter . | . . . . . . . . . . . . . . . . . . Retrieved Matter 22 | . 22 . . . . . . . . . . . . . . . . Retrieved Components 9 | . . . 3 . . . . . . 6 . . . . . . . Parts Scanalyzed 5 | . . . . . 3 . . . . . . 1 . . . . 1 Part Schematics Acquired 5 | . . . . . 3 . . . . . . 1 . . . . 1 Parts Damaged . | . . . . . . . . . . . . . . . . . . Bothacking | -11 -10 -10 -7 -7 -5 -5 -5 -5 -4 -4 -4 -4 -4 -4 -4 -3 -3 ------------ Run | Yrd Mat Sub Rec Scr Fac Upp Upp War Pro Fac Was Fac Upp Upp Zhi Pro Res Used RIF Installer . | . . . . . . . . . . . . . . . . . . Robots Hacked 5 | . . . . 5 . . . . . . . . . . . . . Non-combat 1 | . . . . 1 . . . . . . . . . . . . . Combat 4 | . . . . 4 . . . . . . . . . . . . . Robot Hacks Applied 5 | . . . . 5 . . . . . . . . . . . . . parse_system 5 | . . . . 5 . . . . . . . . . . . . . Relay Couplers Released 3 | . . . . . 3 . . . . . . . . . . . . Machine Destruction 3 | . . . . . 3 . . . . . . . . . . . . Fabnet Peak Effective % . | . . . . . . . . . . . . . . . . . . Robots Rewired . | . . . . . . . . . . . . . . . . . . Allies Hacked 6 | . . . . . . . . . . 4 . 1 . . . . 1 Hacks Repelled . | . . . . . . . . . . . . . . . . . . Allies | -11 -10 -10 -7 -7 -5 -5 -5 -5 -4 -4 -4 -4 -4 -4 -4 -3 -3 -------- Run | Yrd Mat Sub Rec Scr Fac Upp Upp War Pro Fac Was Fac Upp Upp Zhi Pro Res Total Allies 59 | . . . . 1 22 . . . . 16 . 10 . . . . 10 Largest Group 10 | . . . . 1 6 . . . . 6 5 10 6 6 2 2 5 Highest-Rated Group 473 | . . . . 72 310 . . . . 302 235 473 281 281 94 94 320 Highest-Rated Ally 72 | . . . . 72 72 . . . . 61 48 52 52 52 47 47 64 Total Orders 106 | . . . . . 7 35 7 2 . 9 . 23 12 10 . . 1 STAY 55 | . . . . . 5 10 1 1 . 7 . 18 6 6 . . 1 ROAM 4 | . . . . . . 4 . . . . . . . . . . . FOLLOW 20 | . . . . . 1 2 . . . 2 . 5 6 4 . . . AID 1 | . . . . . 1 . . . . . . . . . . . . EXPLORE 18 | . . . . . . 14 3 1 . . . . . . . . . RETURN 8 | . . . . . . 5 3 . . . . . . . . . . Ally Attacks 731 | . . . . . 138 . . . . 129 70 229 15 14 . 11 125 Total Damage 17706 | . . . . . 4484 . . . . 2684 1650 5036 365 331 . 261 2895 Kills 94 | . . . . . 19 . . . . 18 3 34 1 4 . . 15 Allies Corrupted 3 | . . . . . 1 . . . . . . 1 . . . . 1 Allies Melted . | . . . . . . . . . . . . . . . . . . Intel | -11 -10 -10 -7 -7 -5 -5 -5 -5 -4 -4 -4 -4 -4 -4 -4 -3 -3 ------- Run | Yrd Mat Sub Rec Scr Fac Upp Upp War Pro Fac Was Fac Upp Upp Zhi Pro Res Active Infowar (turns) 10417 | . 899 892 . . 1296 . . . 685 1193 164 1450 912 910 176 414 1426 Optics 7330 | . . . . . . . . . 685 1193 164 1450 912 910 176 414 1426 Sensors 1598 | . . . . . . . . . . . . . . 785 154 364 295 Terrain 244 | . . . . . . . . . . . . . . . . . 244 Structural 902 | . 10 892 . . . . . . . . . . . . . . . Decoding 1296 | . . . . . 1296 . . . . . . . . . . . . T.N.C. 889 | . 889 . . . . . . . . . . . . . . . . Robot Analysis Total 7 | . . . . 6 1 . . . . . . . . . . . . Derelict Logs Recovered 8 | . . 1 . 2 . 1 1 . 1 . . . . 2 . . . Drone Launches 12 | . . . . . . 8 3 1 . . . . . . . . . Drone Recoveries 12 | . . . . . . 8 3 1 . . . . . . . . . Decoded 0b10 Intel 21 | . . . . . 21 . . . . . . . . . . . . Garrisons 2 | . . . . . 2 . . . . . . . . . . . . Patrols 7 | . . . . . 7 . . . . . . . . . . . . Investigations 3 | . . . . . 3 . . . . . . . . . . . . Guards 9 | . . . . . 9 . . . . . . . . . . . . Exploration | -11 -10 -10 -7 -7 -5 -5 -5 -5 -4 -4 -4 -4 -4 -4 -4 -3 -3 ------------- Run | Yrd Mat Sub Rec Scr Fac Upp Upp War Pro Fac Was Fac Upp Upp Zhi Pro Res Turns Passed 31227 | 62 1292 4531 3869 8511 3000 965 588 674 803 1193 164 1450 912 910 176 414 1713 Spaces Moved 18430 | 39 642 1999 1424 2840 2607 742 329 668 785 1140 129 1247 950 953 179 413 1344 Core 413 | 2 . . . 252 . . . . . . . . . . . . 159 Treads 6434 | 12 642 1999 1424 2296 . . . . . . . . . . . . 61 Legs . | . . . . . . . . . . . . . . . . . . Wheels 11583 | 25 . . . 292 2607 742 329 668 785 1140 129 1247 950 953 179 413 1124 Hover . | . . . . . . . . . . . . . . . . . . Flight . | . . . . . . . . . . . . . . . . . . Fastest Speed 50 | 50 160 160 160 90 80 90 90 80 90 90 90 90 90 90 90 90 50 Average Speed 146 | 106 175 216 199 290 89 90 90 89 90 90 90 90 90 90 90 90 91 Slowest Speed 900 | 160 240 240 250 900 100 90 90 90 90 90 90 90 90 90 90 90 160 Overloaded Moves . | . . . . . . . . . . . . . . . . . . Propulsion Burnouts . | . . . . . . . . . . . . . . . . . . Robots Hopped 8 | . . . . 5 2 . . . . . . 1 . . . . . Potential Cave-ins 9 | . . . . . . . . 7 . . . . . . . . 2 Cave-ins Triggered 1 | . . . . . . . . 1 . . . . . . . . . Teleports 1 | . . . . . . . . . . . . . . . . . 1 Exploration Rate (%) 67 | 5 90 72 62 96 49 79 98 82 81 22 96 33 78 93 63 69 40 Regions Visited 17 Branch Regions 11 Pre-discovered Areas 11 | . 2 2 1 1 . . . 1 1 . . . . . 3 . . Known Exits Taken 7 | . . . . . 1 . . . 1 . . 1 1 1 1 1 . Unknown Exits Taken 8 | 1 1 1 1 1 . 1 1 1 . . . . . . . . . Scrap Searched 27 | . . 2 . 8 . 1 4 . 4 . . . 2 3 . 3 . Spaces Dug 327 | . 19 90 3 . 92 13 2 8 . 4 . 81 . . . . 15 Terrain Destroyed 1457 | . 134 324 3 . 244 35 27 19 1 22 10 281 79 77 . 47 154 Melee 12 | . . . 3 . 6 . . . . . . . . . . . 3 Projectile 511 | . . 5 . . 148 35 27 19 1 22 10 118 9 22 . 47 48 AOE 934 | . 134 319 . . 90 . . . . . . 163 70 55 . . 103 Terrain Rammed . | . . . . . . . . . . . . . . . . . . Walls Destroyed . | . . . . . . . . . . . . . . . . . . Machines Disabled . | . . . . . . . . . . . . . . . . . . Actions | -11 -10 -10 -7 -7 -5 -5 -5 -5 -4 -4 -4 -4 -4 -4 -4 -3 -3 --------- Run | Yrd Mat Sub Rec Scr Fac Upp Upp War Pro Fac Was Fac Upp Upp Zhi Pro Res Total 21985 | 55 758 2111 2416 3114 3050 1022 611 732 865 1277 173 1489 993 989 193 445 1692 Wait 2289 | 2 32 5 897 206 154 236 259 41 56 69 19 111 32 11 4 14 141 Move 18398 | 39 641 1998 1423 2829 2602 741 328 666 784 1140 128 1244 949 952 178 412 1344 Hop 8 | . . . . 5 2 . . . . . . 1 . . . . . Pick Up 196 | 5 23 21 21 29 43 4 3 2 1 14 4 8 . 2 1 . 15 Fast Attach 71 | 6 1 1 6 1 14 1 . 2 5 1 . 5 . 1 5 . 22 Attach 65 | . 1 6 2 3 19 1 . 2 4 5 . 5 . 1 . . 16 Detach 9 | . . . 2 2 . 1 . . 1 1 . 1 . . . . 1 Swap 80 | 3 12 8 2 3 12 2 . 2 . 4 4 8 . 1 . 6 13 Drop 160 | . 16 7 21 28 24 9 5 4 3 7 9 5 . 3 5 1 13 Fire 589 | . 32 56 . 8 144 26 16 12 11 26 9 100 12 17 . 12 108 Melee 94 | . . 3 39 . 36 . . . . . . . . . . . 16 Ram . | . . . . . . . . . . . . . . . . . . Kick . | . . . . . . . . . . . . . . . . . . Crush . | . . . . . . . . . . . . . . . . . . Escape Stasis 9 | . . . . . . . . 1 . 8 . . . . . . . Rewire 7 | . . . . . . . . . . 2 . 1 . 1 . . 3 Trap 3 | . . . 3 . . . . . . . . . . . . . . Miscellaneous 7 | . . 6 . . . 1 . . . . . . . . . . . Route ------- -11/Scrapyard -10/Materials (discovered 5 exits: [*Mat x3] / [*Min] / *Sub) -10/Subcaves (discovered 2 exits: [*Mat] / *Rec) -7/Recycling (discovered 2 exits: *Fac / *Scr) -7/Scraptown (discovered 2 exits: *Fac x2) -5/Factory (discovered 6 exits: *Fac x4 / *Upp x2) -5/Upper Caves -5/Upper Caves (discovered 2 exits: *Fac / *War) -5/Warlord -4/Proximity Caves -4/Factory -4/Waste -4/Factory (discovered 3 exits: *Res / *Upp x2) -4/Upper Caves -4/Upper Caves (discovered 2 exits: *Res / *Zhi) -4/Zhirov -3/Proximity Caves -3/Research (discovered 4 exits: Res / Arm / Qua x2) History --------- Turn | Location | Event 16 | -11/Scrapyard | Discovered new exit (range 16) 63 | -11/Scrapyard | Entered Materials 311 | -10/Materials | Discovered new exit (range 10) 316 | -10/Materials | Build established: Mutant 597 | -10/Materials | Discovered new exit (range 3) 724 | -10/Materials | Discovered new exit (range 14) 971 | -10/Materials | Discovered new exit (range 10) 1339 | -10/Materials | Discovered new exit (range 6) 1355 | -10/Materials | Entered Subcaves 1994 | -10/Subcaves | Shifting Twisted Machinery released Battle Rifle 1995 | -10/Subcaves | Shifting Twisted Machinery released Piercing Trap 2313 | -10/Subcaves | A swath of the cavern ceiling suddenly collapsed 2848 | -10/Subcaves | Discovered new exit (range 10) 2879 | -10/Subcaves | Lost 3 parts (1n1u1w) 2901 | -10/Subcaves | Core integrity fell below 50% 2938 | -10/Subcaves | Ambushed by Subdweller buried in earth 3388 | -10/Subcaves | Shifting Twisted Machinery released Mak. Sword 3389 | -10/Subcaves | Shifting Twisted Machinery released Mak. Laser 3767 | -10/Subcaves | Visited Clippyterm 3774 | -10/Subcaves | Learned Research security intel 3833 | -10/Subcaves | Ambushed by Subdweller buried in earth 4531 | -10/Subcaves | A swath of the cavern ceiling suddenly collapsed 4598 | -10/Subcaves | Discovered new exit (range 9) 4611 | -10/Subcaves | Ambushed by Subdweller buried in earth 4617 | -10/Subcaves | Ambushed by Subdweller buried in earth 4620 | -10/Subcaves | Ambushed by Subdweller buried in earth 4897 | -10/Subcaves | Visited 4L-MR0's lab 4913 | -10/Subcaves | Found Powered Cannon 5886 | -10/Subcaves | Entered Recycling 7930 | -7/Recycling | Scanned before Scraplab entrance 9042 | -7/Recycling | Discovered new exit (range 6) 9427 | -7/Recycling | Entered Scraplab 9447 | -7/Recycling | Discovered new exit (range 4) 9629 | -7/Recycling | Build established: Cobbler-Mutant 9755 | -7/Recycling | Entered Scraptown 10465 | -7/Scraptown | Discovered new exit (range 5) 10660 | -7/Scraptown | Scanned Subdweller tech in exchange for log data 10668 | -7/Scraptown | Learned Research emergency access door positions 10670 | -7/Scraptown | Learned location of Testing (-2) 10775 | -7/Scraptown | Visited TADAMA 10840 | -7/Scraptown | Visited Bundlers 11672 | -7/Scraptown | Visited Cave Peace 11747 | -7/Scraptown | Visited CR-KLE's Repair Center 11796 | -7/Scraptown | Build established: Derelict-Mutant 11935 | -7/Scraptown | Visited Comm Corps 12164 | -7/Scraptown | Visited UFD Registry 12196 | -7/Scraptown | Visited The Evicted 12266 | -7/Scraptown | Visited Symbiants 12651 | -7/Scraptown | Registered with UFD as "Fluxsink" 12736 | -7/Scraptown | Visited Chapter 10 12855 | -7/Scraptown | Visited Junk Repository 12948 | -7/Scraptown | Visited Abandonware Association 13001 | -7/Scraptown | Learned abandonware demo "KABOOM.EXE" 13059 | -7/Scraptown | Visited Modified Component R&D 13165 | -7/Scraptown | Visited Derelict Rescue Squad 13186 | -7/Scraptown | Found DRS Beacon 13229 | -7/Scraptown | Visited Analyses Database 13287 | -7/Scraptown | Visited LU-1G1's Boring Crew 13469 | -7/Scraptown | Delivered Scrap Shield to a Scientist 13752 | -7/Scraptown | Visited Infowarlord's Domain 13792 | -7/Scraptown | Visited Junk Repository 13862 | -7/Scraptown | Visited Botcube Research 13880 | -7/Scraptown | Found Botcube 15034 | -7/Scraptown | Botcube activated 15052 | -7/Scraptown | Botcube completed mutation into wheeled form, armed with 1 gun, 1 cannon. 15620 | -7/Scraptown | Build established: Mutant 15744 | -7/Scraptown | Found Scrap Suit 15760 | -7/Scraptown | Attached Powered Cannon, gained temporary slot: Power 15770 | -7/Scraptown | Found Scrap Suit 15807 | -7/Scraptown | Discovered new exit (range 3) 18266 | -7/Scraptown | Entered Factory 18266 | -5/Factory | Accompanied by 1 ally 18266 | -5/Factory | Evolved 10 slots: Power x1, Propulsion x2, Utility x6, Weapon x1 18289 | -5/Factory | Discovered new exit (range 14) 18449 | -5/Factory | Identified exit to Factory 18499 | -5/Factory | Scrapoids reinforcements arrived? 18804 | -5/Factory | Build established: Commander-Mutant 18927 | -5/Factory | Loaded intel: 7 recycling unit locations 19074 | -5/Factory | Lost 4 allies 19103 | -5/Factory | Lost 4 parts (1p1u2w) 19152 | -5/Factory | Found Scrap Suit 19352 | -5/Factory | Build established: Derelict-Tank 19553 | -5/Factory | Repaired Broken Ovr. Huge Scrapsphere? 19586 | -5/Factory | Scrapoids reinforcements arrived? 19603 | -5/Factory | Found Scrap Suit 19651 | -5/Factory | Lost 5 allies 19773 | -5/Factory | Repaired Corrupted Ovr. Coil Gun? 19873 | -5/Factory | Repaired Corrupted Ovr. Coil Gun? 19887 | -5/Factory | Fabricated M-13 Machinist? 20000 | -5/Factory | Build established: Hacker-Scrapper 20114 | -5/Factory | P-70 Sage assimilated allied Machinist 6a 20225 | -5/Factory | Discovered new exit (range 15) 20366 | -5/Factory | First assault squad dispatched 20417 | -5/Factory | Fabricated Com. HERF Cannon? 20457 | -5/Factory | Fabricated M-13 Machinist? 20510 | -5/Factory | Scrapoid reinforcements arrived 20548 | -5/Factory | Lost 4 allies 20593 | -5/Factory | Lost 4 parts (1p2u1w) 20708 | -5/Factory | Found Botcube 20837 | -5/Factory | Scrapoid reinforcements arrived 20888 | -5/Factory | Found Scrap Suit 20896 | -5/Factory | Garrison activated, responded to threat 20925 | -5/Factory | Destroyed 8 combat bots 20959 | -5/Factory | Noticed UFD Elites at a Recycling Unit 20995 | -5/Factory | Identified exit to Upper Caves 21069 | -5/Factory | Spotted B-75 Beast 21266 | -5/Factory | Entered Upper Caves 21268 | -5/Upper Caves | UFD Scientist delivered a prototype 21271 | -5/Upper Caves | Activated DRS Beacon 21273 | -5/Upper Caves | Found Prototype Protection 21402 | -5/Upper Caves | Encountered a Warlord checkpoint 21604 | -5/Upper Caves | Learned Factory security intel 21845 | -5/Upper Caves | Discovered new exit (range 22) 22095 | -5/Upper Caves | Identified Enh. Scrap Shield 22231 | -5/Upper Caves | Entered another Upper Caves area 22236 | -5/Upper Caves | Discovered exit to Factory (range 12) 22304 | -5/Upper Caves | Attracted the attention of an 0b10 checkpoint 22379 | -5/Upper Caves | Learned 4 Factory zone layouts 22454 | -5/Upper Caves | Discovered new exit (range 23) 22768 | -5/Upper Caves | Found Alien Artifact 22819 | -5/Upper Caves | Entered Warlord 22979 | -5/Warlord | Visited the Vortex Lab 22990 | -5/Warlord | Found Prototype Energy Gun 22990 | -5/Warlord | Identified Vortex Rail 22996 | -5/Warlord | Warlord's base attacked by MAIN.C 23139 | -5/Warlord | Rebuked by Warlord 23256 | -5/Warlord | Learned Factory terminal intel 23256 | -5/Warlord | Learned Armory fabricator intel 23256 | -5/Warlord | Learned Research recycling unit intel 23257 | -5/Warlord | Learned 4 Research zone layouts 23258 | -5/Warlord | Learned location of Command (-1) 23258 | -5/Warlord | Learned Armory emergency access door positions 23346 | -5/Warlord | Warlord forces counterattacked 23419 | -5/Warlord | Lost 5 allies 23421 | -5/Warlord | Spotted Striker 23434 | -5/Warlord | Spotted Striker 23435 | -5/Warlord | Spotted B-86 Titan 23448 | -5/Warlord | Attacked by Warlord forces 23448 | -5/Warlord | Spotted 6O-DT7(B) 23448 | -5/Warlord | Spotted 4W-O5Q(B) 23448 | -5/Warlord | Spotted Executioner 23449 | -5/Warlord | Spotted B-75 Beast 23451 | -5/Warlord | Spotted Executioner 23461 | -5/Warlord | Crushed by falling debris 23462 | -5/Warlord | Core integrity fell below 50% 23478 | -5/Warlord | Lost 13 allies 23486 | -5/Warlord | Discovered new exit (range 9) 23492 | -5/Warlord | Lost 5 parts (2u3w) 23493 | -5/Warlord | Entered Proximity Caves 23711 | -4/Proximity Caves | Build established: Scavenger-Scrapper 24142 | -4/Proximity Caves | Learned location of Armory (-3) 24178 | -4/Proximity Caves | Discovered exit to Factory (range 8) 24296 | -4/Proximity Caves | Entered Factory 24296 | -4/Factory | Evolved 2 slots: Utility x1, Weapon x1 24299 | -4/Factory | Loaded intel: 26 terminal locations 24616 | -4/Factory | Scrapoids reinforcements arrived? 24680 | -4/Factory | Botcube activated 24694 | -4/Factory | Botcube completed mutation into hovering form, armed with 2 cannons. 24985 | -4/Factory | Found Scrap Suit 25101 | -4/Factory | Build established: Hacker-Scrapper 25104 | -4/Factory | Scrapoids reinforcements arrived? 25167 | -4/Factory | Repaired Rnf. Antimatter Reactor 25280 | -4/Factory | Lost 5 allies 25406 | -4/Factory | Scrapoids reinforcements arrived? 25439 | -4/Factory | Fabricated Adv. Hacking Suite (x1) 25489 | -4/Factory | Sucked down chute 25489 | -4/Factory | Entered Waste 25498 | -4/Waste | Spotted C-40 Crusher 25504 | -4/Waste | EMP discharged 25518 | -4/Waste | Allies destroyed C-40 Crusher 25523 | -4/Waste | Spotted C-40 Crusher 25532 | -4/Waste | Spotted C-40 Crusher 25534 | -4/Waste | Found Damper Plating 25546 | -4/Waste | Spotted C-40 Crusher 25546 | -4/Waste | Spotted C-40 Crusher 25549 | -4/Waste | 5 allies followed down the chute 25553 | -4/Waste | Destroyed C-40 Crusher 25556 | -4/Waste | Spotted C-40 Crusher 25558 | -4/Waste | Destroyed C-40 Crusher 25560 | -4/Waste | Found Damper Plating 25567 | -4/Waste | Destroyed C-40 Crusher 25604 | -4/Waste | EMP discharged 25626 | -4/Waste | Discovered new exit (range 11) 25653 | -4/Waste | Entered Factory 25653 | -4/Factory | Accompanied by 4 allies 25700 | -4/Factory | Identified Dimensional Node Initializer 25925 | -4/Factory | Lost 3 allies 26162 | -4/Factory | Scrapoid reinforcements arrived 26261 | -4/Factory | Scrapoids reinforcements arrived? 26407 | -4/Factory | Discovered new exit (range 6) 26454 | -4/Factory | Identified exit to Research 26568 | -4/Factory | Build established: Commander-Scrapper 26692 | -4/Factory | Identified exit to Upper Caves 26903 | -4/Factory | First assault squad dispatched 26998 | -4/Factory | Found Prototype Launcher 26998 | -4/Factory | Identified Mni. Smartbomb Launcher 27001 | -4/Factory | Found Faulty Mni. Smartbomb Launcher 27103 | -4/Factory | Entered Upper Caves 27103 | -4/Upper Caves | Accompanied by 6 allies 27175 | -4/Upper Caves | Build established: Hacker-Scrapper 27875 | -4/Upper Caves | Discovered new exit (range 11) 27927 | -4/Upper Caves | Identified exit to Upper Caves 28015 | -4/Upper Caves | Entered another Upper Caves area 28015 | -4/Upper Caves | Accompanied by 6 allies 28102 | -4/Upper Caves | Discovered exit to Research (range 8) 28118 | -4/Upper Caves | Found Scrap Suit 28260 | -4/Upper Caves | Encountered a Warlord checkpoint 28408 | -4/Upper Caves | Learned location of 1 exit from Research 28842 | -4/Upper Caves | Discovered new exit (range 10) 28849 | -4/Upper Caves | Identified exit to Zhirov 28880 | -4/Upper Caves | Learned Research trap positions 28925 | -4/Upper Caves | Entered Zhirov 28925 | -4/Zhirov | Accompanied by 2 allies 28925 | -4/Zhirov | Discovered new exit (range 3) 28942 | -4/Zhirov | Met Zhirov 28959 | -4/Zhirov | Learned location of Quarantine (-3) 28977 | -4/Zhirov | Zhirov requested help retrieving the SGEMP Prototype 28997 | -4/Zhirov | Found Alien Artifact 28997 | -4/Zhirov | Identified Integrated Dissipator 28997 | -4/Zhirov | Installed Integrated Dissipator, increased core heat dissipation (+20) 29024 | -4/Zhirov | Found Alien Artifact 29096 | -4/Zhirov | Identified exit to Proximity Caves 29101 | -4/Zhirov | Entered Proximity Caves 29101 | -3/Proximity Caves | Accompanied by 2 allies 29192 | -3/Proximity Caves | Spotted B-86 Titan 29488 | -3/Proximity Caves | Discovered exit to Research (range 12) 29515 | -3/Proximity Caves | Entered Research 29515 | -3/Research | Accompanied by 2 allies 29515 | -3/Research | Evolved 2 slots: Utility x2 29516 | -3/Research | Identified exit to Research 29518 | -3/Research | Loaded intel: 77 trap records 29521 | -3/Research | Loaded intel: 5 recycling unit locations 29587 | -3/Research | Identified exit to Armory 29587 | -3/Research | Identified exit to Quarantine 29856 | -3/Research | Found Scrap Suit 29881 | -3/Research | Identified Transdimensional Reconstructor 29925 | -3/Research | Found Fusion Bomb Launcher 30093 | -3/Research | Repaired Ovr. Coil Gun 30316 | -3/Research | Cargo convoy interrupted 30571 | -3/Research | Build established: Scavenger-Scrapper 30765 | -3/Research | First assault squad dispatched 30781 | -3/Research | Scrapoid reinforcements arrived 30783 | -3/Research | P-80 Master assimilated allied 03R48-D 30838 | -3/Research | Destroyed 8 combat bots 30853 | -3/Research | Lost 4 allies 30921 | -3/Research | Found Scrap Suit 30941 | -3/Research | Core integrity fell below 50% 30941 | -3/Research | Released all parts (5) 30974 | -3/Research | Lost 20 parts (4p3n6u7w) 30974 | -3/Research | Found Gamma Bomb Array 31033 | -3/Research | Scrapoid reinforcements arrived 31100 | -3/Research | Core integrity fell below 20% 31102 | -3/Research | System corruption reached 10% 31113 | -3/Research | Warped through subspace 31135 | -3/Research | Lost 4 allies 31141 | -3/Research | Lost 5 parts (1p1n1u2w) 31228 | -3/Research | Destroyed by G-67 Veteran with Field Laser Last Messages --------------- 31203_ H-71 Marshal calls for reinforcements. 31203_ ALERT: Hostile activity reported, dispatching reinforcements to area. 31203_ Slug penetrates Wall. 31205_ Knocked back. 31206_ Acquired 9 matter. 31212_ Acquired Antimatter Reactor. 31217_ System corrupted: Component data lost. 31218_ Door malfunctions. 31218_ Emergency Access malfunctions. 31219_ Gamma Bomb Array destroyed. 31219_ Med. Treads destroyed. 31219_ Knocked back. 31220_ Acquired Adv. Hacking Suite. 31220_ Critical hit (Burn: +50). 31220_ Lgt. Antimatter Reactor destroyed. 31221_ Penetrated by Slug. 31223_ Knocked back. 31225_ Adv. Heat Sink destroyed. 31227_ U-05 Engineer repairs door. Map ----- +----------------------------------------------------+ | #########+## ########?????????? | | + #?????????? | | # ! !#?????????? | | #= #????